[Event "*** Titled Tuesday Blitz"]
[Site "Chess.com"]
[Date "2019.11.05"]
[Round "7"]
[White "przemekpiotrowski"]
[Black "Azatic"]
[Result "1-0"]
[WhiteElo "2424"]
[BlackElo "2602"]
[TimeControl "180+2"]
[EndTime "14:40:40 PST"]
[Termination "przemekpiotrowski won by resignation"]

1. d4 {[%clk 0:02:54.6]} 1... Nf6 {[%clk 0:03:00.9]} 2. Nf3 {[%clk 0:02:54.2]}
2... g6 {[%clk 0:03:01.9]} 3. g3 {[%clk 0:02:55]} 3... Bg7 {[%clk 0:03:03.2]} 4.
Bg2 {[%clk 0:02:56.9]} 4... O-O {[%clk 0:03:05]} 5. O-O {[%clk 0:02:58.5]} 5...
c5 {[%clk 0:03:06.6]} 6. c4 {[%clk 0:03:00.1]} 6... Na6 {[%clk 0:03:06.9]} 7.
Nc3 {[%clk 0:02:59.4]} 7... d6 {[%clk 0:03:08.1]} 8. d5 {[%clk 0:02:56.3]} 8...
Nc7 {[%clk 0:03:09]} 9. a4 {[%clk 0:02:57.5]} 9... e6 {[%clk 0:03:09.1]} 10. e4
{[%clk 0:02:52.5]} 10... exd5 {[%clk 0:03:08.2]} 11. cxd5 {[%clk 0:02:53.7]}
11... Rb8 {[%clk 0:03:06.8]} 12. h3 {[%clk 0:02:49.4]} 12... Re8 {[%clk
0:03:05.4]} 13. Re1 {[%clk 0:02:49.6]} 13... a6 {[%clk 0:02:58.9]} 14. a5 {[%clk
0:02:48.3]} 14... Nb5 {[%clk 0:02:46]} 15. Nxb5 {[%clk 0:02:29.5]} 15... axb5
{[%clk 0:02:47.9]} 16. Qd3 {[%clk 0:02:12.9]} 16... c4 {[%clk 0:02:47.1]} 17.
Qc2 {[%clk 0:02:13.5]} 17... Nd7 {[%clk 0:02:42.3]} 18. Bf4 {[%clk 0:02:01.7]}
18... Ne5 {[%clk 0:02:43.3]} 19. Nxe5 {[%clk 0:02:02.2]} 19... Bxe5 {[%clk
0:02:45.2]} 20. Bxe5 {[%clk 0:02:03.4]} 20... Rxe5 {[%clk 0:02:47.1]} 21. f4
{[%clk 0:02:04.4]} 21... Re8 {[%clk 0:02:47.9]} 22. e5 {[%clk 0:02:04.9]} 22...
Bf5 {[%clk 0:02:48.4]} 23. Qc3 {[%clk 0:02:04.7]} 23... dxe5 {[%clk 0:02:45.6]}
24. fxe5 {[%clk 0:02:05.2]} 24... Qg5 {[%clk 0:02:47]} 25. Re3 {[%clk
0:01:44.8]} 25... b4 {[%clk 0:02:32.7]} 26. Qd4 {[%clk 0:01:41.7]} 26... Rbc8
{[%clk 0:02:03.7]} 27. d6 {[%clk 0:01:40]} 27... c3 {[%clk 0:02:03.5]} 28. bxc3
{[%clk 0:01:37.7]} 28... Rxc3 {[%clk 0:02:00.4]} 29. Rxc3 {[%clk 0:01:36.5]}
29... bxc3 {[%clk 0:02:02.3]} 30. Qxc3 {[%clk 0:01:37.9]} 30... Rc8 {[%clk
0:02:02.7]} 31. Qf3 {[%clk 0:01:30.1]} 31... Qd2 {[%clk 0:01:54.7]} 32. Qf2
{[%clk 0:01:10.8]} 32... Qc3 {[%clk 0:01:49.5]} 33. Rd1 {[%clk 0:01:04.8]} 33...
Qxa5 {[%clk 0:01:47.9]} 34. Bxb7 {[%clk 0:01:00.8]} 34... Rd8 {[%clk 0:01:46.4]}
35. Bd5 {[%clk 0:00:57.4]} 35... Qa4 {[%clk 0:01:39.5]} 36. Rf1 {[%clk
0:00:53.4]} 36... Qb5 {[%clk 0:01:36.6]} 37. Qd4 {[%clk 0:00:50.2]} 37... Rd7
{[%clk 0:01:15]} 38. g4 {[%clk 0:00:43.5]} 38... Bd3 {[%clk 0:01:15.7]} 39. e6
{[%clk 0:00:22.3]} 39... Bxf1 {[%clk 0:00:55.9]} 40. exd7 {[%clk 0:00:22.6]}
40... Qxd7 {[%clk 0:00:53.1]} 41. Kxf1 {[%clk 0:00:23.7]} 41... h5 {[%clk
0:00:45.9]} 42. Qf6 {[%clk 0:00:21.5]} 42... Qb5+ {[%clk 0:00:40.7]} 43. Kg1
{[%clk 0:00:22.1]} 43... Qc5+ {[%clk 0:00:30]} 44. Kh2 {[%clk 0:00:22.4]} 44...
Qxd5 {[%clk 0:00:29.6]} 45. gxh5 {[%clk 0:00:23.5]} 45... gxh5 {[%clk
0:00:26.7]} 46. h4 {[%clk 0:00:24.6]} 46... Qd2+ {[%clk 0:00:23.8]} 47. Kg3
{[%clk 0:00:24.6]} 47... Qe3+ {[%clk 0:00:23.1]} 48. Qf3 {[%clk 0:00:22.9]}
48... Qe5+ {[%clk 0:00:21.5]} 49. Qf4 {[%clk 0:00:24.1]} 49... Qc3+ {[%clk
0:00:22.6]} 50. Kf2 {[%clk 0:00:25.1]} 50... Qc2+ {[%clk 0:00:22.9]} 51. Ke3
{[%clk 0:00:25.1]} 51... Qc3+ {[%clk 0:00:24.1]} 52. Ke4 {[%clk 0:00:25.9]}
52... f6 {[%clk 0:00:12.4]} 53. Kd5 {[%clk 0:00:13.2]} 53... Kf7 {[%clk
0:00:10.4]} 54. Qe4 {[%clk 0:00:08.1]} 54... Qb3+ {[%clk 0:00:09]} 55. Kc6
{[%clk 0:00:09.3]} 55... Qc3+ {[%clk 0:00:06.3]} 56. Kd7 {[%clk 0:00:10.1]}
56... Qg3 {[%clk 0:00:04.1]} 57. Qh7+ {[%clk 0:00:10.1]} 57... Kf8 {[%clk
0:00:05.5]} 58. Qh8+ {[%clk 0:00:11.4]} 58... Kf7 {[%clk 0:00:06.9]} 59. Qxh5+
{[%clk 0:00:12.7]} 59... Kg7 {[%clk 0:00:07.7]} 60. Qf5 {[%clk 0:00:06.1]} 60...
Qxh4 {[%clk 0:00:08.1]} 61. Ke7 {[%clk 0:00:06.6]} 61... Qe1+ {[%clk 0:00:08.7]}
62. Qe6 {[%clk 0:00:07.4]} 62... Qb4 {[%clk 0:00:10]} 63. Qxf6+ {[%clk
0:00:08.4]} 63... Kh7 {[%clk 0:00:11]} 64. Qg5 {[%clk 0:00:06.6]} 64... Qe4+
{[%clk 0:00:08.9]} 65. Kf6 {[%clk 0:00:07.4]} 65... Qd4+ {[%clk 0:00:09]} 66.
Ke6 {[%clk 0:00:08.6]} 66... Qe4+ {[%clk 0:00:09.2]} 67. Qe5 {[%clk 0:00:09.8]}
67... Qg6+ {[%clk 0:00:10.4]} 68. Kd7 {[%clk 0:00:10.1]} 68... Qg4+ {[%clk
0:00:10.6]} 69. Qe6 {[%clk 0:00:11.4]} 69... Qa4+ {[%clk 0:00:12]} 70. Ke7
{[%clk 0:00:12.4]} 70... Qa7+ {[%clk 0:00:13]} 71. d7 {[%clk 0:00:13.3]} 71...
Qa3+ {[%clk 0:00:13.6]} 72. Ke8 {[%clk 0:00:14.4]} 72... Qa4 {[%clk 0:00:13.8]}
73. Qf5+ {[%clk 0:00:14.5]} 73... Kg7 {[%clk 0:00:14.6]} 74. Qe5+ {[%clk
0:00:15.6]} 74... Kg8 {[%clk 0:00:14.8]} 75. Qg5+ {[%clk 0:00:16]} 75... Kh7
{[%clk 0:00:15.3]} 76. Ke7 {[%clk 0:00:17.1]} 76... Qb4+ {[%clk 0:00:15.6]} 77.
Kf7 {[%clk 0:00:17.9]} 77... Qc4+ {[%clk 0:00:16.2]} 78. Kf8 {[%clk 0:00:18.6]}
78... Qf1+ {[%clk 0:00:13.9]} 79. Ke8 {[%clk 0:00:18.4]} 79... Qb5 {[%clk
0:00:13.7]} 80. Qxb5 {[%clk 0:00:18.2]} 1-0

[Event "*** Titled Tuesday Blitz"]
[Site "Chess.com"]
[Date "2019.11.05"]
[Round "8"]
[White "Eliwood44"]
[Black "marianokar"]
[Result "0-1"]
[WhiteElo "2362"]
[BlackElo "2482"]
[TimeControl "180+2"]
[EndTime "14:48:17 PST"]
[Termination "marianokar won by resignation"]

1. d4 {[%clk 0:03:01.9]} 1... Nf6 {[%clk 0:03:00]} 2. Nf3 {[%clk 0:02:55.1]}
2... e6 {[%clk 0:03:01.3]} 3. Bf4 {[%clk 0:02:55.8]} 3... d5 {[%clk 0:03:02.3]}
4. e3 {[%clk 0:02:57]} 4... Bd6 {[%clk 0:03:03.8]} 5. Bg3 {[%clk 0:02:58.3]}
5... O-O {[%clk 0:03:04.5]} 6. Nbd2 {[%clk 0:02:58.4]} 6... c5 {[%clk
0:03:05.9]} 7. c3 {[%clk 0:02:59.3]} 7... b6 {[%clk 0:03:07.3]} 8. e4 {[%clk
0:02:58.1]} 8... dxe4 {[%clk 0:03:03.5]} 9. Ng5 {[%clk 0:02:57.8]} 9... e3
{[%clk 0:02:52.1]} 10. fxe3 {[%clk 0:02:55.3]} 10... Bxg3+ {[%clk 0:02:52.8]}
11. hxg3 {[%clk 0:02:56.4]} 11... h6 {[%clk 0:02:51.8]} 12. Qf3 {[%clk
0:02:52.2]} 12... Qc7 {[%clk 0:02:52.1]} 13. Rxh6 {[%clk 0:02:47.5]} 13... Bb7
{[%clk 0:02:44.8]} 14. Nge4 {[%clk 0:02:43.3]} 14... Nxe4 {[%clk 0:02:38.6]} 15.
Nxe4 {[%clk 0:02:30.6]} 15... gxh6 {[%clk 0:02:38]} 16. Nf6+ {[%clk 0:02:27.6]}
16... Kh8 {[%clk 0:02:39]} 17. Qh5 {[%clk 0:02:28.1]} 17... Qxg3+ {[%clk
0:02:38.1]} 18. Kd1 {[%clk 0:02:26.6]} 18... Qg5 {[%clk 0:02:33.6]} 0-1

[Event "*** Titled Tuesday Blitz"]
[Site "Chess.com"]
[Date "2019.11.05"]
[Round "8"]
[White "fidetrainerNET"]
[Black "ranu540"]
[Result "1-0"]
[WhiteElo "2193"]
[BlackElo "1716"]
[TimeControl "180+2"]
[EndTime "14:48:46 PST"]
[Termination "fidetrainerNET won by checkmate"]

1. e4 {[%clk 0:03:01.9]} 1... c5 {[%clk 0:03:00.8]} 2. Nf3 {[%clk 0:03:03.8]}
2... Nc6 {[%clk 0:03:01.5]} 3. d4 {[%clk 0:03:04]} 3... cxd4 {[%clk 0:03:02.4]}
4. c3 {[%clk 0:03:05.4]} 4... dxc3 {[%clk 0:03:03]} 5. Nxc3 {[%clk 0:03:07.3]}
5... g6 {[%clk 0:03:03.1]} 6. Bc4 {[%clk 0:03:07.8]} 6... Bg7 {[%clk 0:03:02.9]}
7. Bg5 {[%clk 0:03:06.1]} 7... Nf6 {[%clk 0:02:54.1]} 8. Qe2 {[%clk 0:03:06.6]}
8... O-O {[%clk 0:02:51.3]} 9. Rd1 {[%clk 0:03:05.8]} 9... d6 {[%clk 0:02:51.2]}
10. e5 {[%clk 0:03:04]} 10... Nd7 {[%clk 0:02:47.6]} 11. exd6 {[%clk 0:03:04.6]}
11... exd6 {[%clk 0:02:47.4]} 12. Bxd8 {[%clk 0:03:04.4]} 12... Rxd8 {[%clk
0:02:47.4]} 13. O-O {[%clk 0:03:00.5]} 13... Nf6 {[%clk 0:02:40.5]} 14. Ng5
{[%clk 0:02:57]} 14... Rf8 {[%clk 0:02:34.9]} 15. Rxd6 {[%clk 0:02:54.3]} 15...
Bg4 {[%clk 0:02:34.9]} 16. f3 {[%clk 0:02:53.3]} 16... Bf5 {[%clk 0:02:33.5]}
17. g4 {[%clk 0:02:53.1]} 17... Be6 {[%clk 0:02:31.5]} 18. Rxe6 {[%clk
0:02:49.8]} 18... fxe6 {[%clk 0:02:31.3]} 19. Nxe6 {[%clk 0:02:51.7]} 19... Rfe8
{[%clk 0:02:28.7]} 20. Nc7+ {[%clk 0:02:52.2]} 20... Kf8 {[%clk 0:02:25.2]} 21.
Nxe8 {[%clk 0:02:52.2]} 21... Rxe8 {[%clk 0:02:25.9]} 22. Qd1 {[%clk 0:02:49.9]}
22... Bh6 {[%clk 0:02:21.5]} 23. Re1 {[%clk 0:02:49.4]} 23... Be3+ {[%clk
0:02:20.9]} 24. Kg2 {[%clk 0:02:49.8]} 24... Nd4 {[%clk 0:02:16.7]} 25. Rxe3
{[%clk 0:02:48.4]} 25... Rxe3 {[%clk 0:02:14.1]} 26. Qxd4 {[%clk 0:02:49.2]}
26... Re8 {[%clk 0:02:10.5]} 27. Qxf6# {[%clk 0:02:49.5]} 1-0

[Event "*** Titled Tuesday Blitz"]
[Site "Chess.com"]
[Date "2019.11.05"]
[Round "8"]
[White "Bishops83"]
[Black "PNEPaul"]
[Result "1-0"]
[WhiteElo "2246"]
[BlackElo "1727"]
[TimeControl "180+2"]
[EndTime "14:48:48 PST"]
[Termination "Bishops83 won by resignation"]

1. e4 {[%clk 0:03:01.9]} 1... e5 {[%clk 0:02:59.4]} 2. Nf3 {[%clk 0:03:01.8]}
2... Nc6 {[%clk 0:02:59.9]} 3. d4 {[%clk 0:03:01]} 3... exd4 {[%clk 0:03:00.3]}
4. Nxd4 {[%clk 0:03:01.4]} 4... Be7 {[%clk 0:03:01.2]} 5. Nc3 {[%clk 0:03:00.7]}
5... d6 {[%clk 0:03:01.8]} 6. Be3 {[%clk 0:03:00.4]} 6... Nf6 {[%clk 0:03:02.5]}
7. f3 {[%clk 0:02:58.5]} 7... O-O {[%clk 0:03:03.4]} 8. Qd2 {[%clk 0:02:58.9]}
8... a6 {[%clk 0:03:04.1]} 9. g4 {[%clk 0:02:58.9]} 9... Nxd4 {[%clk 0:03:01.2]}
10. Bxd4 {[%clk 0:03:00.8]} 10... c5 {[%clk 0:03:02.1]} 11. Be3 {[%clk
0:02:59.7]} 11... b5 {[%clk 0:03:03.1]} 12. g5 {[%clk 0:02:56.7]} 12... b4
{[%clk 0:02:48]} 13. Ne2 {[%clk 0:02:40.2]} 13... Nh5 {[%clk 0:02:26.9]} 14. Ng3
{[%clk 0:02:40.5]} 14... Nxg3 {[%clk 0:02:15.3]} 15. hxg3 {[%clk 0:02:42.4]}
15... f6 {[%clk 0:01:57]} 16. Bc4+ {[%clk 0:02:40.2]} 16... Kh8 {[%clk
0:01:48.8]} 17. g6 {[%clk 0:02:37.5]} 17... h6 {[%clk 0:01:40.1]} 18. Bxh6
{[%clk 0:02:36.7]} 1-0

[Event "*** Titled Tuesday Blitz"]
[Site "Chess.com"]
[Date "2019.11.05"]
[Round "8"]
[White "ChessWarrior7197"]
[Black "KhalilMousavi77"]
[Result "1/2-1/2"]
[WhiteElo "2959"]
[BlackElo "2914"]
[TimeControl "180+2"]
[EndTime "14:48:51 PST"]
[Termination "Game drawn by agreement"]

1. e4 {[%clk 0:03:01.9]} 1... e6 {[%clk 0:02:59.7]} 2. d4 {[%clk 0:03:02.7]}
2... d5 {[%clk 0:03:01]} 3. Nc3 {[%clk 0:03:04.2]} 3... Bb4 {[%clk 0:03:01.2]}
4. Ne2 {[%clk 0:03:05.2]} 4... dxe4 {[%clk 0:03:01.2]} 5. a3 {[%clk 0:03:06.1]}
5... Be7 {[%clk 0:03:02.6]} 6. Nxe4 {[%clk 0:03:06.9]} 6... Nf6 {[%clk
0:03:04.4]} 7. Nxf6+ {[%clk 0:03:07.6]} 7... Bxf6 {[%clk 0:03:06.3]} 8. Be3
{[%clk 0:03:08.9]} 8... O-O {[%clk 0:03:05.7]} 9. Qd2 {[%clk 0:03:09]} 9... b6
{[%clk 0:03:00.6]} 10. O-O-O {[%clk 0:03:08.6]} 10... Bb7 {[%clk 0:03:01.8]} 11.
Nc3 {[%clk 0:03:09.2]} 11... Nc6 {[%clk 0:02:53.7]} 12. h4 {[%clk 0:02:59.5]}
12... Ne7 {[%clk 0:02:51.3]} 13. Bd3 {[%clk 0:02:50.8]} 13... Nd5 {[%clk
0:02:40.3]} 14. Nxd5 {[%clk 0:02:33.9]} 14... Qxd5 {[%clk 0:02:38]} 15. f3
{[%clk 0:02:33.1]} 15... Qa2 {[%clk 0:02:35.9]} 16. Qc3 {[%clk 0:02:33.1]} 16...
c5 {[%clk 0:02:32.3]} 1/2-1/2

[Event "*** Titled Tuesday Blitz"]
[Site "Chess.com"]
[Date "2019.11.05"]
[Round "8"]
[White "Alopekos"]
[Black "LuisFSiles"]
[Result "1-0"]
[WhiteElo "2473"]
[BlackElo "2310"]
[TimeControl "180+2"]
[EndTime "14:50:15 PST"]
[Termination "Alopekos won by resignation"]

1. e4 {[%clk 0:02:47.3]} 1... e5 {[%clk 0:02:59.6]} 2. Nf3 {[%clk 0:02:46.3]}
2... Nc6 {[%clk 0:03:00.4]} 3. Bb5 {[%clk 0:02:44.5]} 3... a6 {[%clk 0:03:01]}
4. Ba4 {[%clk 0:02:44.7]} 4... Nf6 {[%clk 0:03:01.7]} 5. O-O {[%clk 0:02:45.5]}
5... Be7 {[%clk 0:03:03]} 6. Re1 {[%clk 0:02:45.3]} 6... b5 {[%clk 0:03:04]} 7.
Bb3 {[%clk 0:02:46.5]} 7... d6 {[%clk 0:03:05.2]} 8. a4 {[%clk 0:02:47.5]} 8...
Bd7 {[%clk 0:02:57.6]} 9. axb5 {[%clk 0:02:43.8]} 9... axb5 {[%clk 0:02:58.2]}
10. Rxa8 {[%clk 0:02:45.7]} 10... Qxa8 {[%clk 0:02:59.5]} 11. Nc3 {[%clk
0:02:47.6]} 11... Na5 {[%clk 0:02:39.1]} 12. Ba2 {[%clk 0:02:38.9]} 12... b4
{[%clk 0:02:33]} 13. Nd5 {[%clk 0:02:39.5]} 13... Nxd5 {[%clk 0:02:34.2]} 14.
Bxd5 {[%clk 0:02:34.9]} 14... c6 {[%clk 0:02:34]} 15. Ba2 {[%clk 0:02:34.4]}
15... O-O {[%clk 0:02:27.5]} 16. d4 {[%clk 0:02:35.3]} 16... Bg4 {[%clk
0:02:01.8]} 17. dxe5 {[%clk 0:02:28.5]} 17... dxe5 {[%clk 0:02:02.8]} 18. h3
{[%clk 0:02:29.8]} 18... Rd8 {[%clk 0:02:02]} 19. Bxf7+ {[%clk 0:02:04.5]} 19...
Kh8 {[%clk 0:01:52.8]} 20. Qe2 {[%clk 0:02:04.3]} 20... Bxf3 {[%clk 0:01:37.9]}
21. Qxf3 {[%clk 0:02:06.2]} 21... Rf8 {[%clk 0:01:39.6]} 22. Qh5 {[%clk
0:02:06.4]} 22... Bf6 {[%clk 0:01:24.9]} 23. Bg6 {[%clk 0:02:03.7]} 1-0

[Event "*** Titled Tuesday Blitz"]
[Site "Chess.com"]
[Date "2019.11.05"]
[Round "8"]
[White "StoreySniper"]
[Black "Joel1285"]
[Result "1-0"]
[WhiteElo "2266"]
[BlackElo "1888"]
[TimeControl "180+2"]
[EndTime "14:50:30 PST"]
[Termination "StoreySniper won by resignation"]

1. d4 {[%clk 0:03:01.9]} 1... Nf6 {[%clk 0:02:57]} 2. c4 {[%clk 0:02:52.8]} 2...
e6 {[%clk 0:02:58.2]} 3. Nc3 {[%clk 0:02:42.6]} 3... Bb4 {[%clk 0:02:59.4]} 4.
e3 {[%clk 0:02:36.1]} 4... c5 {[%clk 0:03:00.7]} 5. Bd3 {[%clk 0:02:35.3]} 5...
Bxc3+ {[%clk 0:02:59.4]} 6. bxc3 {[%clk 0:02:35.8]} 6... d6 {[%clk 0:03:01]} 7.
Ne2 {[%clk 0:02:37]} 7... Nc6 {[%clk 0:03:01.8]} 8. O-O {[%clk 0:02:37.6]} 8...
b6 {[%clk 0:03:03]} 9. f3 {[%clk 0:02:35.4]} 9... Ba6 {[%clk 0:02:57]} 10. Ng3
{[%clk 0:02:36.3]} 10... Na5 {[%clk 0:02:57.4]} 11. Qe2 {[%clk 0:02:36.8]} 11...
Qd7 {[%clk 0:02:57.9]} 12. e4 {[%clk 0:02:30.7]} 12... Qa4 {[%clk 0:02:52.4]}
13. e5 {[%clk 0:02:29.7]} 13... dxe5 {[%clk 0:02:29.6]} 14. dxe5 {[%clk
0:02:29.1]} 14... Nd7 {[%clk 0:02:30.6]} 15. Ne4 {[%clk 0:02:23.6]} 15... O-O
{[%clk 0:02:18.5]} 16. f4 {[%clk 0:02:10.3]} 16... Bxc4 {[%clk 0:02:15.3]} 17.
Ng5 {[%clk 0:02:03.3]} 17... h6 {[%clk 0:01:58.2]} 18. Qe4 {[%clk 0:02:03.6]}
18... g6 {[%clk 0:01:44.8]} 19. Nxe6 {[%clk 0:02:00]} 19... Rfe8 {[%clk
0:01:06.8]} 20. Nc7 {[%clk 0:01:51.2]} 1-0

[Event "*** Titled Tuesday Blitz"]
[Site "Chess.com"]
[Date "2019.11.05"]
[Round "8"]
[White "esskeettit"]
[Black "eldur16"]
[Result "1-0"]
[WhiteElo "2454"]
[BlackElo "2571"]
[TimeControl "180+2"]
[EndTime "14:50:44 PST"]
[Termination "esskeettit won by resignation"]

1. e4 {[%clk 0:03:01.9]} 1... g6 {[%clk 0:02:59.9]} 2. d4 {[%clk 0:02:59.9]}
2... Bg7 {[%clk 0:03:00.3]} 3. Nc3 {[%clk 0:02:58.6]} 3... d6 {[%clk 0:03:01.2]}
4. Be3 {[%clk 0:02:58.6]} 4... a6 {[%clk 0:03:01.8]} 5. f4 {[%clk 0:02:57]} 5...
b5 {[%clk 0:03:01.7]} 6. Bd3 {[%clk 0:02:55.5]} 6... Bb7 {[%clk 0:03:02]} 7. Nf3
{[%clk 0:02:55.6]} 7... Nd7 {[%clk 0:03:02.6]} 8. e5 {[%clk 0:02:55.9]} 8... c5
{[%clk 0:03:01.2]} 9. Be4 {[%clk 0:02:56.1]} 9... Bxe4 {[%clk 0:02:57.9]} 10.
Nxe4 {[%clk 0:02:58]} 10... Nh6 {[%clk 0:02:38.6]} 11. dxc5 {[%clk 0:02:32]}
11... dxe5 {[%clk 0:02:28]} 12. c6 {[%clk 0:02:22.7]} 12... Nf6 {[%clk 0:02:27]}
13. Qxd8+ {[%clk 0:02:20.5]} 13... Kxd8 {[%clk 0:02:11.7]} 14. Nxf6 {[%clk
0:02:17.7]} 14... exf6 {[%clk 0:02:11.1]} 15. fxe5 {[%clk 0:02:15.9]} 15... fxe5
{[%clk 0:02:11.1]} 16. Bb6+ {[%clk 0:01:45.2]} 16... Kc8 {[%clk 0:02:05.8]} 17.
O-O-O {[%clk 0:01:41.5]} 17... Nf5 {[%clk 0:01:39.4]} 18. Rd7 {[%clk 0:01:38.2]}
18... e4 {[%clk 0:01:17.2]} 19. Rhd1 {[%clk 0:01:37.4]} 19... Bf6 {[%clk
0:01:15.9]} 20. Ne5 {[%clk 0:01:37.1]} 1-0

[Event "*** Titled Tuesday Blitz"]
[Site "Chess.com"]
[Date "2019.11.05"]
[Round "8"]
[White "StockholmMissile"]
[Black "babadroga92"]
[Result "1-0"]
[WhiteElo "2312"]
[BlackElo "2609"]
[TimeControl "180+2"]
[EndTime "14:50:46 PST"]
[Termination "StockholmMissile won by resignation"]

1. d4 {[%clk 0:03:01.9]} 1... Nf6 {[%clk 0:03:01]} 2. c4 {[%clk 0:03:01.3]} 2...
e6 {[%clk 0:03:00.7]} 3. Nf3 {[%clk 0:03:02.3]} 3... Bb4+ {[%clk 0:03:02]} 4.
Bd2 {[%clk 0:03:02.9]} 4... a5 {[%clk 0:03:03.2]} 5. g3 {[%clk 0:03:02.8]} 5...
d6 {[%clk 0:03:04.8]} 6. Bg2 {[%clk 0:03:03.7]} 6... Nbd7 {[%clk 0:03:06.5]} 7.
O-O {[%clk 0:03:04.4]} 7... e5 {[%clk 0:03:08.1]} 8. dxe5 {[%clk 0:03:04.7]}
8... Nxe5 {[%clk 0:03:03.7]} 9. a3 {[%clk 0:02:41.7]} 9... Bxd2 {[%clk
0:02:47.1]} 10. Nbxd2 {[%clk 0:02:42.8]} 10... O-O {[%clk 0:02:30.5]} 11. Nxe5
{[%clk 0:02:28.2]} 11... dxe5 {[%clk 0:02:32.4]} 12. Qc2 {[%clk 0:02:29.3]}
12... a4 {[%clk 0:02:25.7]} 13. Rad1 {[%clk 0:02:28.6]} 13... Qe7 {[%clk
0:02:26.7]} 14. Ne4 {[%clk 0:02:24.1]} 14... Bf5 {[%clk 0:02:23.2]} 15. Nxf6+
{[%clk 0:02:23.4]} 15... Qxf6 {[%clk 0:02:25.1]} 16. Qc3 {[%clk 0:02:22.7]}
16... c6 {[%clk 0:02:07.9]} 17. Rd2 {[%clk 0:02:20.6]} 17... Rad8 {[%clk
0:02:02.8]} 18. Rfd1 {[%clk 0:02:20.3]} 18... Rxd2 {[%clk 0:01:56.8]} 19. Qxd2
{[%clk 0:02:20.7]} 19... h6 {[%clk 0:01:52.8]} 20. c5 {[%clk 0:02:19.3]} 20...
e4 {[%clk 0:01:49.2]} 21. Qd4 {[%clk 0:02:16.2]} 21... Qe7 {[%clk 0:01:40.2]}
22. h4 {[%clk 0:01:30.9]} 22... Ra8 {[%clk 0:01:38.7]} 23. Qb4 {[%clk
0:01:26.7]} 23... Ra5 {[%clk 0:01:35.3]} 24. Qxa5 {[%clk 0:01:22.5]} 1-0

[Event "*** Titled Tuesday Blitz"]
[Site "Chess.com"]
[Date "2019.11.05"]
[Round "8"]
[White "Vojtap"]
[Black "Godzillator"]
[Result "1-0"]
[WhiteElo "2171"]
[BlackElo "2288"]
[TimeControl "180+2"]
[EndTime "14:51:07 PST"]
[Termination "Vojtap won by resignation"]

1. e4 {[%clk 0:03:01.9]} 1... c6 {[%clk 0:03:00.6]} 2. d4 {[%clk 0:03:01.7]}
2... d5 {[%clk 0:03:02.2]} 3. exd5 {[%clk 0:03:03.6]} 3... cxd5 {[%clk
0:03:03.2]} 4. c4 {[%clk 0:03:05.1]} 4... Nf6 {[%clk 0:03:03.9]} 5. Nc3 {[%clk
0:03:06.7]} 5... e6 {[%clk 0:03:05.5]} 6. Nf3 {[%clk 0:03:06.2]} 6... Bb4 {[%clk
0:03:06.9]} 7. Bd2 {[%clk 0:03:06.3]} 7... O-O {[%clk 0:03:06.5]} 8. cxd5 {[%clk
0:03:05.7]} 8... Nxd5 {[%clk 0:03:07.2]} 9. Bd3 {[%clk 0:03:07.1]} 9... Nc6
{[%clk 0:03:07.3]} 10. O-O {[%clk 0:03:06.9]} 10... Be7 {[%clk 0:03:08.3]} 11.
Be4 {[%clk 0:03:05.1]} 11... Ncb4 {[%clk 0:03:00.9]} 12. Re1 {[%clk 0:02:48.5]}
12... Bf6 {[%clk 0:03:01.5]} 13. Ne5 {[%clk 0:02:38.2]} 13... g6 {[%clk
0:02:56.1]} 14. Bh6 {[%clk 0:02:37.1]} 14... Re8 {[%clk 0:02:54.5]} 15. Qf3
{[%clk 0:02:29.6]} 15... Bd7 {[%clk 0:02:29.4]} 16. Nxd7 {[%clk 0:02:20.3]}
16... Qxd7 {[%clk 0:02:24.6]} 17. Bxd5 {[%clk 0:02:21.4]} 17... Bxd4 {[%clk
0:02:18.9]} 18. Bxb7 {[%clk 0:02:12.5]} 18... Rab8 {[%clk 0:02:19.3]} 19. Be4
{[%clk 0:02:12.5]} 19... f5 {[%clk 0:02:16.5]} 20. Bb1 {[%clk 0:02:02.3]} 20...
e5 {[%clk 0:02:17.6]} 21. a3 {[%clk 0:02:03.1]} 21... e4 {[%clk 0:02:18.2]} 22.
Qh3 {[%clk 0:01:56.6]} 22... Nd5 {[%clk 0:02:03.4]} 23. Nxd5 {[%clk 0:01:54.5]}
23... Bxb2 {[%clk 0:02:00.3]} 24. Ba2 {[%clk 0:01:51.1]} 24... Kh8 {[%clk
0:01:57.5]} 25. Rad1 {[%clk 0:01:46.1]} 25... Red8 {[%clk 0:01:44.3]} 26. Bg5
{[%clk 0:01:43.2]} 26... Rdc8 {[%clk 0:01:42.1]} 27. Bf6+ {[%clk 0:01:34.1]}
27... Bxf6 {[%clk 0:01:40.5]} 28. Nxf6 {[%clk 0:01:35.1]} 28... Qg7 {[%clk
0:01:41.4]} 29. Rd7 {[%clk 0:01:32.5]} 1-0

[Event "*** Titled Tuesday Blitz"]
[Site "Chess.com"]
[Date "2019.11.05"]
[Round "8"]
[White "Last7Samurai"]
[Black "el-reptiliano"]
[Result "1-0"]
[WhiteElo "2686"]
[BlackElo "2324"]
[TimeControl "180+2"]
[EndTime "14:51:12 PST"]
[Termination "Last7Samurai won by resignation"]

1. e4 {[%clk 0:03:01.9]} 1... c5 {[%clk 0:03:00.7]} 2. c3 {[%clk 0:03:01.8]}
2... d5 {[%clk 0:03:00.7]} 3. exd5 {[%clk 0:03:00.8]} 3... Qxd5 {[%clk
0:03:02.6]} 4. d4 {[%clk 0:03:01.6]} 4... Nc6 {[%clk 0:03:02.7]} 5. Nf3 {[%clk
0:03:02.3]} 5... Bg4 {[%clk 0:03:03.7]} 6. Be2 {[%clk 0:03:01.2]} 6... cxd4
{[%clk 0:03:04.2]} 7. cxd4 {[%clk 0:03:01.9]} 7... e6 {[%clk 0:03:04.7]} 8. h3
{[%clk 0:03:02.7]} 8... Bf5 {[%clk 0:02:59.6]} 9. Nc3 {[%clk 0:03:00.9]} 9...
Bb4 {[%clk 0:03:00.5]} 10. O-O {[%clk 0:03:00.2]} 10... Bxc3 {[%clk 0:03:00.8]}
11. bxc3 {[%clk 0:03:01.5]} 11... Nf6 {[%clk 0:02:57.6]} 12. Ba3 {[%clk
0:03:01.7]} 12... Qa5 {[%clk 0:02:36.4]} 13. Qb3 {[%clk 0:03:00.5]} 13... Qb6
{[%clk 0:02:37.6]} 14. Qa4 {[%clk 0:02:32.1]} 14... Qa5 {[%clk 0:02:18.7]} 15.
Qxa5 {[%clk 0:02:29.6]} 15... Nxa5 {[%clk 0:02:20.6]} 16. Bb5+ {[%clk
0:02:28.1]} 16... Nc6 {[%clk 0:02:17.4]} 17. Ne5 {[%clk 0:02:24.1]} 17... Rc8
{[%clk 0:02:18.4]} 18. Rfe1 {[%clk 0:02:05.5]} 18... a6 {[%clk 0:02:10.6]} 19.
Bxc6+ {[%clk 0:02:04.4]} 19... bxc6 {[%clk 0:02:12.5]} 20. Nc4 {[%clk
0:02:03.4]} 20... Rc7 {[%clk 0:01:52]} 21. Nd6+ {[%clk 0:02:00.8]} 21... Kd8
{[%clk 0:01:53.1]} 22. Bc5 {[%clk 0:01:55]} 22... Rd7 {[%clk 0:01:46.5]} 23.
Bb6+ {[%clk 0:01:44.9]} 23... Rc7 {[%clk 0:01:43.9]} 24. Nxf7+ {[%clk
0:01:43.7]} 24... Kd7 {[%clk 0:01:42.8]} 25. Nxh8 {[%clk 0:01:26.1]} 25... Rb7
{[%clk 0:01:42.9]} 26. Bc5 {[%clk 0:01:23.5]} 26... Nd5 {[%clk 0:01:43.6]} 27.
Nf7 {[%clk 0:01:20.8]} 27... Nxc3 {[%clk 0:01:43.1]} 28. Ne5+ {[%clk 0:01:21.9]}
28... Kc7 {[%clk 0:01:43.8]} 29. Rac1 {[%clk 0:01:21.6]} 29... Nxa2 {[%clk
0:01:44.9]} 30. Ra1 {[%clk 0:01:19.8]} 30... Rb2 {[%clk 0:01:45]} 31. Nc4 {[%clk
0:01:19.2]} 31... Rc2 {[%clk 0:01:46]} 32. Ne3 {[%clk 0:01:19.9]} 32... Rb2
{[%clk 0:01:47.2]} 33. Nxf5 {[%clk 0:01:20.7]} 33... exf5 {[%clk 0:01:48.2]} 34.
Re7+ {[%clk 0:01:21.4]} 34... Kd8 {[%clk 0:01:49.4]} 35. Rae1 {[%clk 0:01:21.9]}
1-0